{"text_format":"3","workbook":"xlsx","n_sheets":1,"sheets":["Unit_Price_Tab"],"not_rendered":{"external_links":1,"defined_names":7},"read":"whole","date_system":"1900"}

{"sheet":"Unit_Price_Tab","index":0,"n_rows":68,"n_cols":6,"rows_kept":68,"merged":[[1,0,1,5]]}
[]
["THE UNDERSIGNED CERTIFIES THAT (CONTRACTOR NAME)___________________________\nIS CURRENTLY REGISTERED WITH THE VIRGINIA STATE BOARD OF CONTRACTORS AS REQUIRED BY THE CODE OF VIRGINIA.  CERTIFICATE NUMBER _________________ WAS ISSUED ON THE ________DAY OF _____________, 20XX.  THE UNDERSIGNED FURTHER CERTIFIES THAT THE REGISTRATION FEE AND ALL RENEWAL FEES REQUIRED UNDER LAW HAVE BEEN PAID.  THE CONTRACTOR AGREES TO FURNISH ALL NECESSARY LABOR, EQUIPMENT, MATERIALS, AND ALL THINGS NECESSARY TO PERFORM THE WORK AS SET FORTH IN ACCORDANCE WITH THE PLANS AND SPECIFICATIONS. THE CONTRACTOR AGREES TO PERFORM RELATED WORK FOR THE FOLLOWING ITEMS AT THE FOLLOWING STIPULATED PRICES: (ALL PRICES INCLUDE PROVISION AND INSTALLATION)."]
[]
[]
["MASTER ITEM #","DESCRIPTION","QTY","UNIT","UNIT PRICE","TOTAL"]
["C1","GENERAL EARTHWORK"]
["MASTER ITEM #","DESCRIPTION","QTY","UNIT","UNIT PRICE","TOTAL"]
["02200-C1-00010","General Excavation, only when not included in other pay items",20,"CY",null,{"$f":"C8*E8","v":{"v":0,"d":"$0.00"}}]
["02200-C1-00050","Select Borrow (VDOT Section 207 - Select Material, Type I)",5,"CY",null,{"$f":"C9*E9","v":{"v":0,"d":"$0.00"}}]
[{"$nulls":4},"SUBTOTAL",{"$f":"SUM(F8:F9)","v":{"v":0,"d":"$0.00"}}]
[]
["C2","CONCRETE WORK"]
["MASTER ITEM #","DESCRIPTION","QTY","UNIT","UNIT PRICE","TOTAL"]
["02750-C2-00020","Concrete Curb, Standard Header Curb C-3 (Arlington County Detail R-2.0), includes curb for aprons, ramps, etc.",90,"LF",null,{"$f":"C14*E14","v":{"v":0,"d":"$0.00"}}]
["02750-C2-00060","Concrete Curb & Gutter, Standard C-2 and C-2R (Arlington County Detail R-2.0), includes curb & gutter for aprons, ramps, etc.",220,"LF",null,{"$f":"C15*E15","v":{"v":0,"d":"$0.00"}}]
["02611-C2-00110","Concrete Sidewalk, 4\" Thickness (Arlington County Detail R-2.0)",200,"SY",null,{"v":0,"d":"$0.00"}]
["02611-C2-00190","CG-12 Detectable Warning Surface - Truncated Domes",9,"SY",null,{"v":0,"d":"$0.00"}]
["03100-C2-00200","Concrete Steps Each (Arlington County Detail R-3.0, including all reinforcing bars as shown in detail)",5,"LF-W",null,{"v":0,"d":"$0.00"}]
[{"$nulls":4},"SUBTOTAL",{"$f":"SUM(F14:F18)","v":{"v":0,"d":"$0.00"}}]
[]
["C3","ASPHALT WORK"]
["MASTER ITEM #","DESCRIPTION","QTY","UNIT","UNIT\nPRICE","TOTAL"]
["02600-C3-00010","Asphalt Concrete, Planing or Milling (1/2\" to 3\" Depth)",1800,"SY",null,{"$f":"C23*E23","v":{"v":0,"d":"$0.00"}}]
["02600-C3-00030","Asphalt Concrete, Base Course (VDOT BM-25.0A)",16,"TON",null,{"$f":"C24*E24","v":{"v":0,"d":"$0.00"}}]
["02600-C3-00060","Asphalt Concrete, Surface Course (VDOT SM-9.5A)",215,"TON",null,{"v":0,"d":"$0.00"}]
[{"$nulls":4},"SUBTOTAL",{"$f":"SUM(F23:F25)","v":{"v":0,"d":"$0.00"}}]
[]
["C4","STORM SEWER UTILITY WORK"]
["MASTER ITEM #","DESCRIPTION","QTY","UNIT","UNIT\nPRICE","TOTAL"]
["02505-C4-00470","Catch Basin Structure Top, Remove & Replace with Modified Extended Throat",1,"EA",null,{"$f":"C30*E30","v":{"v":0,"d":"$0.00"}}]
[{"$nulls":4},"SUBTOTAL",{"$f":"SUM(F30)","v":{"v":0,"d":"$0.00"}}]
[]
["C8","TRAFFIC SIGNAL WORK"]
["MASTER ITEM #","DESCRIPTION","QTY","UNIT","UNIT\nPRICE","TOTAL"]
["13160-C8-03000","Traffic Signal Upgrade of Washington Blvd. & N. Sycamore St. as outlined in Construction Plans",1,"LS",null,{"$f":"C35*E35","v":{"v":0,"d":"$0.00"}}]
[{"$nulls":4},"SUBTOTAL",{"$f":"SUM(F35)","v":{"v":0,"d":"$0.00"}}]
[]
["C10","PAVEMENT MARKING AND SIGNAGE WORK"]
["MASTER ITEM #","DESCRIPTION","QTY","UNIT","UNIT\nPRICE","TOTAL"]
["02900-C10-00050","Twenty Four (24) Inch Transverse Markings, Note: Used For Continental (Ladder) Crosswalk",1000,"LF",null,{"$f":"C40*E40","v":{"v":0,"d":"$0.00"}}]
["02900-C10-00070","Four (4) Inch Longitudinal Solid Line",70,"LF",null,{"$f":"C41*E41","v":{"v":0,"d":"$0.00"}}]
["02900-C10-00080","Four (4) Inch Longitudinal Skip Line (Ten (10) Foot Line/Thirty (30) Foot Spacing), Note: Forty (40) LF Consists of Ten (10) LF of Marking and Thirty (30) LF of Space",50,"LF",null,{"v":0,"d":"$0.00"}]
["02900-C10-00100","Four (4) Inch Longitudinal Skip Line (Two (2) Foot Line/Six (6) Foot Spacing), Note: Eight (8) LF Consists of Two (2) LF of Marking and Six (6) LF of Space, **Turn Lane Skips**",75,"LF",null,{"v":0,"d":"$0.00"}]
["02900-C10-00120","Six (6) Inch Longitudinal Solid Line",10,"LF",null,{"v":0,"d":"$0.00"}]
["02900-C10-00150","Six (6) Inch Longitudinal Skip Line (Two (2) Foot Line/Six (6) Foot Spacing), Note: Eight (8) LF Consists of Two (2) LF of Marking and Six (6) LF of Space",30,"LF",null,{"v":0,"d":"$0.00"}]
["02900-C10-00170","Twelve (12) Inch Yellow Longitudinal Centerline, Two - Four (4) Inch Yellow Lines with Four (4) Inch Separation",75,"LF",null,{"v":0,"d":"$0.00"}]
["02900-C10-00240","Single Arrows",1,"EA",null,{"v":0,"d":"$0.00"}]
["02900-C10-00290","Standard Bicycle Symbols (MUTCD, Chapter 9C, Figure 9C-3), \"Bike Symbol\", \"Helmeted Bicyclist Symbol\"",1,"EA",null,{"v":0,"d":"$0.00"}]
["02900-C10-00300","Standard Bicycle Symbols (MUTCD, Chapter 9C, Figure 9C-9), \"Shared Lane Marking\"",1,"EA",null,{"v":0,"d":"$0.00"}]
["02619-C10-00410","Traffic Control Sign (Typical Stop, Yield, No Parking, Speed Limit, or Similar)",1,"EA",null,{"v":0,"d":"$0.00"}]
[{"$nulls":4},"SUBTOTAL",{"$f":"SUM(F40:F50)","v":{"v":0,"d":"$0.00"}}]
[]
["C11","LANDSCAPE & HARDSCAPE RESTORATION WORK"]
["MASTER ITEM #","DESCRIPTION","QTY","UNIT","UNIT\nPRICE","TOTAL"]
["02200-C11-00010","Imported Topsoil",1.6,"CY",null,{"$f":"C55*E55","v":{"v":0,"d":"$0.00"}}]
["02801-C11-00070","Sod, Zoysia",13,"SY",null,{"$f":"C56*E56","v":{"v":0,"d":"$0.00"}}]
["05500-C11-00140","Handrail (Arlington County Detail R-3.1)",15,"LF",null,{"v":0,"d":"$0.00"}]
["02800-C11-00200","Chain Link Fence, Height Less Than or Equal to 6'",170,"LF",null,{"v":0,"d":"$0.00"}]
[{"$nulls":4},"SUBTOTAL",{"$f":"SUM(F55:F58)","v":{"v":0,"d":"$0.00"}}]
[]
["C16","E&SC, MOT & MOBILIZATION WORK"]
["MASTER ITEM #","DESCRIPTION","QTY","UNIT","UNIT\nPRICE","TOTAL"]
[null,"Temporary Erosion and Sediment Controls (E&SC)",1,"LS",null,{"$f":"C63*E63","v":{"v":0,"d":"$0.00"}}]
[null,"Maintenance of Traffic (MOT)",1,"LS",null,{"$f":"C64*E64","v":{"v":0,"d":"$0.00"}}]
[null,"Mobilization and De-Mobilization",1,"LS",null,{"$f":"C65*E65","v":{"v":0,"d":"$0.00"}}]
[{"$nulls":4},"SUBTOTAL",{"$f":"SUM(F63:F65)","v":{"v":0,"d":"$0.00"}}]
[]
[{"$nulls":4}," CONTRACT TOTAL: ",{"$f":"SUM(F10,F19,F26,F31,F36,F51,F59,F66)","v":{"v":0,"d":"$0.00"}}]